bitfinex-derivatives/quotes_ETHF0:USTF0_20251116
["timestamp","ask_amount","ask_price","bid_price","bid_amount"]
[1763267080308,0.15014093,3200.0,3199.7,0.00234621]
[1763267081112,0.15014093,3200.0,3199.8,3.2078]
[1763267084920,0.2353,3199.9,3199.8,3.2078]
[1763267091516,0.3767,3199.5,3199.4,0.00468977]
[1763267092018,6.3767,3199.5,3198.9,3.2078]
[1763267092320,0.3767,3199.0,3198.9,3.2078]
[1763267092523,0.3767,3199.0,3198.9,3.21097841]
[1763267093222,0.1414,3199.0,3198.9,3.21097841]
[1763267093725,0.3767,3199.0,3198.9,3.21097841]
[1763267097414,0.3767,3199.0,3198.9,0.00317841]
[1763267101529,0.1414,3199.5,3198.9,0.00317841]
[1763267101930,0.1414,3199.5,3199.0,0.83775857]
[1763267102328,0.1414,3199.5,3199.2,3.2078]
[1763267103422,0.2769,3199.3,3199.2,3.2078]
[1763267103633,0.4417,3199.0,3198.9,0.00317841]
[1763267104033,0.4417,3199.0,3198.3,3.2078]
[1763267104034,0.2769,3198.4,3198.3,3.2078]
[1763267105032,0.2769,3198.4,3198.3,3.21042087]
[1763267111233,0.2769,3198.4,3198.3,0.00262087]
[1763267113742,0.1648,3198.5,3198.3,0.00262087]
[1763267115234,0.2653,3198.4,3198.3,0.00262087]
[1763267118235,0.2653,3198.4,3198.3,2.087e-05]
[1763267118734,9.4731,3198.4,3198.3,2.087e-05]
[1763267118931,9.4731,3198.4,3197.6,3.2078]
[1763267118932,0.2653,3197.7,3197.6,3.2078]
[1763267119331,0.2653,3197.3,3197.2,0.83775857]
[1763267119526,0.2653,3197.2,3197.1,0.83775857]
[1763267119933,0.26777785,3197.2,3197.1,0.84107491]
[1763267120539,0.00247785,3197.2,3197.1,0.00331634]
[1763267121944,0.26777785,3197.2,3197.1,0.00331634]
[1763267122135,0.26777785,3197.2,3197.1,0.84436243]
[1763267126240,0.26777785,3197.2,3197.1,0.00331634]
[1763267126636,0.26777785,3197.2,3196.8,3.21248977]
[1763267126637,0.2653,3196.9,3196.8,0.38692237]
[1763267126842,0.163,3197.0,3196.8,0.00468977]
[1763267127044,0.163,3197.0,3196.9,3.2078]
[1763267127634,0.4283,3197.0,3196.9,3.21053258]
[1763267128040,0.163,3197.0,3196.9,3.21053258]
[1763267128242,0.4283,3197.0,3196.9,3.21053258]
[1763267128950,0.2598,3196.9,3196.8,0.00468977]
[1763267129150,0.2598,3196.1,3196.0,3.2078]
[1763267130050,0.2598,3196.1,3196.0,3.21095365]
[1763267133256,0.2598,3196.1,3196.0,0.00315365]
[1763267137851,3.2078,3196.4,3196.0,0.00315365]
[1763267146261,3.2078,3196.4,3196.0,1.12603375]
[1763267148161,0.2598,3196.1,3196.0,0.00315365]
[1763267149164,0.2598,3196.1,3196.0,1.12560876]
[1763267151262,0.2598,3196.1,3196.0,0.00315365]
[1763267154368,0.2598,3196.1,3196.0,1.68744785]
[1763267156067,0.2598,3196.1,3196.0,0.00315365]
[1763267158270,3.09185127,3196.4,3196.0,0.00315365]
[1763267158459,3.37895127,3196.4,3196.3,1.12535849]
[1763267158663,0.2871,3196.4,3196.3,1.12535849]
[1763267161066,0.163,3197.0,3196.2,3.2078]
[1763267161266,0.163,3197.0,3196.9,1.68793068]
[1763267161267,0.4501,3197.0,3196.9,1.68793068]
[1763267161469,0.2871,3196.9,3196.8,1.68793068]
[1763267161769,0.2871,3196.9,3196.8,1.12521884]
[1763267163572,0.2871,3196.7,3196.6,1.68793068]
[1763267163772,0.2871,3196.7,3196.2,2.2497611]
[1763267163773,0.2871,3196.2,3196.1,0.25292082]
[1763267163977,0.2871,3196.1,3196.0,0.00315365]
[1763267164174,0.2871,3196.1,3196.0,0.30805365]
[1763267164978,0.1827,3196.5,3196.0,0.49215365]
[1763267165478,0.2871,3196.1,3196.0,0.49215365]
[1763267165779,0.1827,3196.5,3196.0,0.49215365]
[1763267167478,0.4698,3196.5,3196.4,0.3049]
[1763267168674,0.2871,3196.5,3196.4,0.3049]
[1763267169069,3.2078,3196.6,3196.5,0.489]
[1763267170175,3.3905,3197.0,3196.5,0.489]
[1763267170781,3.6776,3197.0,3196.9,0.3049]
[1763267171367,3.6776,3197.0,3196.5,0.1841]
[1763267173079,3.6776,3197.0,3196.9,0.3049]
[1763267174483,3.6776,3197.0,3196.5,0.1841]
[1763267174676,0.3423,3196.6,3196.5,0.5265]
[1763267175381,0.3423,3196.6,3196.5,0.3424]
[1763267177080,0.3423,3196.6,3196.5,0.5605]
[1763267177684,0.3423,3196.6,3196.5,0.3424]
[1763267178587,3.3905,3197.0,3196.5,0.5605]
[1763267178885,3.7328,3197.0,3196.9,0.3424]
[1763267179694,3.7328,3197.0,3196.5,0.2181]
[1763267180074,0.3423,3196.6,3196.5,0.5605]
[1763267180278,0.3423,3196.3,3196.2,3.5502]
[1763267181283,3.3905,3197.0,3196.2,3.5502]
[1763267183790,3.3905,3197.0,3196.5,1.90467025]
[1763267184388,0.3423,3196.6,3196.5,1.68657025]
[1763267184580,0.3423,3196.5,3196.4,1.68657025]
[1763267184781,0.3423,3196.5,3196.2,4.89437025]
[1763267185091,0.3423,3196.3,3196.2,5.23677025]
[1763267186892,0.3423,3196.3,3196.2,2.02897025]
[1763267187097,3.3905,3197.0,3196.2,2.02897025]
[1763267187383,3.3905,3197.0,3196.5,0.2181]
[1763267187587,0.3423,3196.6,3196.5,0.5605]
[1763267188689,3.3905,3197.0,3196.5,0.5605]
[1763267190291,3.2078,3197.0,3196.9,0.3396]
[1763267192787,0.00247785,3197.2,3197.1,0.3396]
[1763267192985,0.33917785,3197.2,3197.1,0.3396]
[1763267193690,0.00247785,3197.2,3197.1,0.3396]
[1763267195494,0.00247785,3197.2,3197.1,1.4639961]
[1763267197587,0.3367,3197.1,3197.0,1.1243961]
[1763267197990,0.3367,3196.9,3196.8,1.4639961]
[1763267200093,0.3367,3196.9,3196.8,0.3396]
[1763267200295,0.3367,3197.1,3197.0,0.5417]
[1763267202898,0.00247785,3197.2,3197.1,0.3396]
[1763267203085,0.33917785,3197.2,3197.1,0.3396]
[1763267204100,0.3367,3197.0,3196.9,1.12492051]
[1763267204292,0.3367,3197.0,3196.9,1.46452051]
[1763267206103,0.33917785,3197.2,3197.1,0.3396]
[1763267216108,0.5416,3197.0,3196.9,1.12492051]
[1763267216403,0.3367,3196.7,3196.6,1.12492051]
[1763267216603,0.3367,3196.6,3196.5,1.12492051]
[1763267217108,0.3367,3196.5,3196.4,1.12492051]
[1763267217310,3.5445,3196.5,3196.4,1.46452051]
[1763267217511,3.2078,3196.5,3196.4,1.46452051]
[1763267217909,1.17462102,3197.0,3196.5,0.2021]
[1763267218103,0.3367,3197.0,3196.9,0.3396]
[1763267220912,0.2987,3196.8,3196.7,1.42598087]
[1763267223210,0.00247785,3197.2,3196.7,0.3007]
[1763267223514,0.2987,3196.9,3196.8,1.4260435]
[1763267224714,0.30117785,3197.2,3197.1,0.3007]
[1763267225109,0.00247785,3197.2,3197.1,0.3007]
[1763267225809,3.2078,3197.7,3197.6,0.3007]
[1763267226317,3.2078,3197.7,3197.6,1.42529498]
[1763267226715,3.2078,3198.1,3198.0,0.1934]
[1763267227016,3.21089303,3198.1,3198.0,2.18183106]
[1763267227319,3.21089303,3198.1,3198.0,0.4941]
[1763267227922,0.00309303,3198.1,3198.0,0.4941]
[1763267228118,0.00309303,3198.1,3198.0,1.61645244]
[1763267228424,0.00309303,3198.1,3198.0,0.4941]
[1763267229222,0.00309303,3198.1,3198.0,1.6157103]
[1763267230115,0.00309303,3198.1,3198.0,0.4941]
[1763267233918,2.92446581,3198.5,3198.4,0.2934]
[1763267235121,0.00378745,3198.5,3198.4,0.29568661]
[1763267236217,0.00378745,3198.5,3198.4,0.54559446]
[1763267236417,3.4962,3199.4,3199.3,0.2934]
[1763267236622,3.4962,3199.4,3199.0,0.4815]
[1763267236623,0.2884,3199.1,3199.0,0.4815]
[1763267236917,3.5204,3199.4,3199.3,0.3197]
[1763267237322,3.52349456,3199.4,3199.3,0.3197]
[1763267237524,0.31569456,3199.4,3199.3,0.3197]
[1763267240721,0.00309456,3199.4,3199.3,0.3197]
[1763267246227,0.3126,3199.2,3199.1,3.5275]
[1763267247323,0.31569456,3199.4,3199.3,0.3197]
[1763267252630,0.3043,3199.1,3199.0,0.00468977]
[1763267253035,6.3043,3199.1,3199.0,0.00468977]
[1763267253238,0.3043,3198.5,3198.4,0.00228661]
[1763267253538,0.4708,3198.5,3198.4,0.00228661]
[1763267254434,0.3043,3198.5,3198.4,0.00228661]
[1763267255332,3.3859,3199.0,3198.5,0.4519]
[1763267256032,0.3043,3198.6,3198.5,0.4519]
[1763267258639,0.3043,3198.5,3198.4,0.00228661]
[1763267259042,0.3043,3198.5,3198.4,0.28118661]
[1763267259338,3.3859,3199.0,3198.5,0.173]
[1763267259535,0.3043,3198.6,3198.5,0.4519]
[1763267262942,3.3859,3199.0,3198.5,0.4519]
[1763267263742,0.3043,3198.6,3198.5,0.4519]
[1763267282844,3.2078,3198.7,3198.6,0.2526]
[1763267286351,3.3876,3198.7,3198.6,0.2526]
[1763267290949,0.1798,3198.7,3198.6,0.2526]
[1763267292759,0.1798,3198.6,3198.5,1.2946103]
[1763267292961,0.1798,3198.5,3198.4,1.12389691]
[1763267293463,0.1798,3198.5,3198.4,1.37649691]
[1763267295168,0.1798,3198.5,3198.4,0.00228661]
[1763267295463,0.1538,3198.2,3198.0,1.1216103]
[1763267295670,0.1516,3197.9,3197.8,3.84139535]
[1763267295967,0.99439401,3197.9,3197.8,3.2078]
[1763267296265,0.1516,3197.6,3197.5,0.4597]
[1763267296465,0.1516,3197.6,3197.5,0.46223081]
[1763267296667,3.3594,3197.8,3197.7,0.2663]
[1763267296857,3.2078,3197.8,3197.7,0.2663]
[1763267297061,0.00468977,3197.9,3197.8,0.2663]
[1763267301468,0.00468977,3197.9,3197.8,3.4741]
[1763267301665,3.38711053,3198.5,3198.4,0.2663]
[1763267301866,0.1563,3198.5,3198.4,0.2663]
[1763267305577,3.3641,3198.7,3198.6,0.2663]
[1763267306181,0.1563,3198.6,3198.5,0.1536]
[1763267306375,0.1563,3198.6,3198.5,0.4199]
[1763267311985,3.2078,3198.7,3198.6,0.2417]
[1763267314592,0.00468977,3198.8,3198.7,0.2417]
[1763267323690,0.1434,3198.6,3198.5,0.3953]
[1763267324388,0.1434,3198.6,3198.5,0.1536]
[1763267326894,0.1434,3198.6,3198.5,0.3953]
[1763267328695,0.1434,3198.6,3198.5,0.1536]
[1763267333194,0.1434,3198.6,3198.5,0.3953]
[1763267333392,3.2078,3198.7,3198.6,0.2417]
[1763267333697,0.00468977,3198.8,3198.7,0.2417]
[1763267346401,0.1271,3198.3,3198.2,1.12183159]
[1763267346697,4.05059401,3198.3,3198.2,0.2483]
[1763267346897,3.2078,3198.3,3198.2,0.2483]
[1763267349507,3.3349,3198.3,3198.2,0.2483]
[1763267350006,3.2078,3198.3,3198.2,0.2483]
[1763267352602,15.95346354,3198.6,3198.5,0.3908]
[1763267352798,15.112,3198.6,3198.5,0.3908]
[1763267353312,4.33165889,3198.8,3198.7,0.239]
[1763267353313,3.21248977,3198.8,3198.7,0.239]
[1763267353910,3.33978977,3198.8,3198.7,0.239]
[1763267354110,0.1273,3198.6,3198.5,0.1425]
[1763267354410,0.1273,3198.6,3198.5,0.3815]
[1763267356813,0.1273,3198.6,3198.5,0.1425]
[1763267358006,0.96938586,3198.6,3198.5,0.1425]
[1763267358202,0.1273,3198.1,3198.0,1.27543159]
[1763267358407,0.1273,3198.1,3198.0,0.3926]
[1763267359320,4.04988586,3198.4,3198.0,0.3926]
[1763267359518,4.17718586,3198.4,3198.3,0.239]
[1763267360325,4.17718586,3198.4,3198.0,0.1536]
[1763267361628,4.04988586,3198.4,3198.3,0.239]
[1763267361818,3.2078,3198.4,3198.3,0.239]
[1763267362421,3.3351,3198.4,3198.0,0.1536]
[1763267362923,3.2078,3198.4,3198.3,0.239]
[1763267364725,3.3351,3198.4,3198.0,0.1536]
[1763267364926,3.2078,3198.4,3198.3,0.239]
[1763267367323,3.3351,3198.4,3198.3,0.239]
[1763267367531,3.3351,3198.4,3198.0,0.1536]
[1763267368623,3.3351,3198.4,3198.3,0.239]
[1763267373344,0.1269,3198.1,3198.0,1.51343159]
[1763267373534,15.111,3198.2,3198.0,0.1536]
[1763267374543,15.111,3198.2,3198.0,0.3916]
[1763267376342,3.2078,3198.1,3198.0,0.3916]
[1763267377837,0.84191217,3198.4,3198.3,0.238]
[1763267378041,3.2078,3198.7,3198.6,0.238]
[1763267378234,3.2078,3198.7,3198.5,0.3862]
[1763267378432,3.2078,3198.7,3198.6,0.238]
[1763267380240,3.2078,3198.7,3198.5,0.1482]
[1763267380442,19.16071217,3198.7,3198.1,1.12183159]
[1763267380640,0.84191217,3198.5,3198.0,3.3614]
[1763267380841,15.111,3198.4,3198.0,3.3614]
[1763267382445,3.2078,3198.2,3198.0,0.1536]
[1763267382839,15.111,3198.1,3197.7,1.12183159]
[1763267383348,15.111,3198.1,3198.0,0.1482]
[1763267384950,15.111,3198.1,3198.0,0.3862]
[1763267389049,3.2078,3198.2,3198.1,0.238]
[1763267389253,11.21291217,3198.5,3198.4,0.238]
[1763267389453,10.371,3198.5,3198.4,0.238]
[1763267390648,4.04971217,3198.6,3198.5,0.3862]
[1763267390856,19.16071217,3198.6,3198.5,0.3862]
[1763267392247,19.16071217,3198.6,3198.5,0.1482]
[1763267392755,15.95291217,3198.6,3198.5,0.1482]
[1763267400255,15.95291217,3198.6,3198.5,0.3862]
[1763267400454,15.111,3198.6,3198.5,0.3862]
[1763267401050,15.111,3198.6,3198.5,0.1482]
[1763267401256,15.111,3198.6,3198.2,1.12183159]
[1763267402553,3.2078,3198.4,3198.1,1.35363159]
[1763267402747,3.2078,3198.4,3198.1,0.2318]
[1763267404553,3.2078,3198.4,3198.0,3.356]
[1763267405056,3.2078,3198.4,3198.0,3.5878]
[1763267406155,3.2078,3198.4,3198.0,0.38]
[1763267407556,3.2078,3198.4,3198.0,0.1482]
[1763267407748,3.2078,3198.4,3197.8,1.12183159]
[1763267407950,3.2078,3198.0,3197.6,4.32963159]
[1763267408155,18.3168,3198.0,3197.6,4.32963159]
[1763267408555,18.3168,3198.0,3197.6,4.56143159]
[1763267409453,15.109,3198.0,3197.6,4.56143159]
[1763267409655,15.109,3198.0,3197.9,0.2318]
[1763267415066,15.109,3198.0,3197.9,1.35363159]
[1763267415567,3.2078,3198.4,3198.0,0.1465]
[1763267416067,0.84157872,3198.3,3197.7,1.12183159]
[1763267416257,15.95157872,3198.2,3197.5,1.5581624]
[1763267416457,15.95157872,3198.2,3197.6,1.12183159]
[1763267416668,0.84157872,3198.1,3197.5,1.3177624]
[1763267416868,0.84157872,3198.1,3197.5,1.5581624]
[1763267417070,3.2078,3198.0,3197.5,1.5581624]
[1763267419770,3.2078,3198.0,3197.5,0.43633081]
[1763267419771,4.04937872,3198.0,3197.5,0.43633081]
[1763267420270,3.2078,3198.0,3197.5,0.43633081]
[1763267421268,0.84157872,3197.9,3197.5,0.43633081]
[1763267421972,15.11,3197.8,3197.5,0.00253081]
[1763267424171,15.11,3197.8,3197.5,0.14903081]
[1763267424370,15.11,3197.8,3197.5,0.38943081]
[1763267425578,15.11,3197.8,3197.5,0.00253081]
[1763267426076,15.11,3197.8,3197.5,0.14903081]
[1763267428672,18.3178,3197.8,3197.5,0.14903081]
[1763267431290,19.15937872,3197.8,3197.2,0.00468977]
[1763267431576,3.2078,3197.3,3196.6,4.32963159]
[1763267431775,3.2078,3196.8,3196.6,1.12183159]
[1763267431970,18.3188,3196.8,3196.4,1.12183159]
[1763267432479,18.3212574,3196.8,3196.5,0.00338713]
[1763267433681,18.3212574,3196.8,3196.5,0.36788713]
[1763267434272,18.3212574,3196.8,3196.5,0.13838713]
[1763267435778,18.3212574,3196.8,3196.7,0.2295]
[1763267435976,3.2102574,3196.8,3196.7,0.2295]
[1763267436676,3.2102574,3196.8,3196.5,0.36788713]
[1763267437084,3.2102574,3196.8,3196.7,0.2295]
[1763267439491,3.2102574,3196.8,3196.5,0.36788713]
[1763267440400,3.2102574,3196.8,3196.5,0.13838713]
[1763267440874,3.2102574,3196.8,3196.5,0.00338713]
[1763267441078,15.114,3196.7,3196.5,0.00338713]
[1763267445488,15.114,3196.7,3196.5,0.36788713]
[1763267445692,3.2102574,3196.8,3196.7,0.2295]
[1763267446791,3.2102574,3196.8,3196.5,0.36788713]
[1763267447293,18.3252574,3196.8,3196.5,0.36788713]
[1763267447590,15.1174574,3196.8,3196.7,0.2295]
[1763267447790,15.1174574,3196.8,3196.5,0.13838713]
[1763267448187,15.1174574,3196.8,3196.5,0.36788713]
[1763267448483,18.3252574,3196.8,3196.5,0.00338713]
[1763267450791,18.3252574,3196.8,3196.3,0.00468977]
[1763267450991,3.2078,3196.4,3196.3,0.00468977]
[1763267451189,18.3228,3196.4,3196.3,0.00468977]
[1763267451989,18.3228,3196.4,3196.3,0.00863277]
[1763267454481,18.3228,3196.4,3196.3,3.277e-05]
[1763267455685,18.3228,3196.4,3196.0,0.00468977]
[1763267456194,19.16398349,3196.4,3196.0,0.00468977]
[1763267456682,19.16398349,3196.4,3196.0,0.00734849]
[1763267457991,0.84118349,3196.3,3196.0,0.00734849]
[1763267458992,0.84118349,3196.3,3195.5,0.135]
[1763267459186,3.2078,3195.6,3195.5,0.135]
[1763267459386,18.3248,3195.6,3195.5,0.135]
[1763267460093,18.3248,3195.6,3195.5,0.13794581]
[1763267460482,18.3248,3195.6,3195.5,0.36744581]
[1763267460985,15.117,3195.6,3195.5,0.36744581]
[1763267462089,3.2078,3196.0,3195.9,0.2373]
[1763267462294,18.3258,3196.0,3195.9,0.2373]
[1763267462490,18.3258,3196.0,3195.5,0.13794581]
[1763267462894,18.3258,3196.0,3195.5,0.37524581]
[1763267466295,18.3258,3196.0,3195.5,0.15024581]
[1763267466496,3.2078,3195.6,3195.5,0.00294581]
[1763267466794,18.3268,3195.6,3195.5,0.15024581]
[1763267471304,18.3268,3195.6,3195.5,0.38754581]
[1763267471804,3.2078,3195.6,3195.5,0.38754581]
[1763267472197,3.2078,3196.0,3195.9,0.2373]
[1763267472495,10.9018,3196.0,3195.9,0.2373]
[1763267473696,10.9018,3196.0,3195.5,0.15024581]
[1763267473897,10.9018,3196.0,3195.9,0.2377]
[1763267474096,10.9018,3196.0,3195.5,0.15024581]
[1763267474303,10.9018,3196.0,3195.5,0.38794581]
[1763267477004,10.9018,3196.0,3195.9,0.2377]
[1763267477409,10.9018,3196.0,3195.5,0.15024581]
[1763267479507,11.74298349,3196.0,3195.5,0.15024581]
[1763267482201,11.74298349,3196.0,3195.5,0.38794581]
[1763267483108,0.84118349,3195.9,3195.5,0.38794581]
[1763267484210,4.04898349,3195.9,3195.5,0.38794581]
[1763267484410,0.84118349,3195.8,3195.5,0.38794581]
[1763267486616,0.84118349,3195.7,3195.5,0.15024581]
[1763267486803,0.84118349,3195.7,3195.5,0.00294581]
[1763267489405,0.84118349,3195.7,3195.5,0.14784581]
[1763267490401,0.84118349,3195.7,3195.5,0.00294581]
[1763267491214,0.84118349,3195.6,3195.5,0.00294581]
[1763267491616,1.11916912,3195.6,3195.5,0.00294581]
[1763267493515,1.67710637,3195.7,3195.5,0.00294581]
[1763267494405,1.12185465,3195.6,3195.5,0.00294581]
[1763267495616,1.12185465,3195.6,3195.0,0.135]
[1763267495810,3.2078,3195.1,3194.6,1.12183159]
[1763267496004,3.2078,3195.1,3194.5,1.48423159]
[1763267496718,3.2078,3195.1,3194.5,1.48685228]
[1763267499320,3.2078,3195.1,3194.5,0.36502069]
[1763267500021,3.2078,3195.1,3195.0,0.1449]
[1763267500219,3.2078,3195.1,3195.0,0.3723]
[1763267501417,3.2078,3195.1,3195.0,0.1449]
[1763267502514,3.2078,3195.1,3195.0,0.3723]
[1763267503116,4.04903211,3195.1,3194.5,0.13762069]
[1763267503326,3.2078,3194.7,3194.5,0.13762069]
[1763267503619,15.122,3194.6,3194.5,0.00262069]
[1763267503922,15.122,3194.6,3194.5,0.14752069]
[1763267504624,15.122,3194.6,3194.5,0.37492069]
[1763267505718,15.122,3194.6,3194.0,0.1473]
[1763267506019,0.84015546,3194.4,3194.3,0.2274]
[1763267506218,3.2078,3194.5,3194.0,0.1473]
[1763267506219,18.3318,3194.5,3194.0,0.1473]
[1763267506414,18.3318,3194.5,3194.0,0.3747]
[1763267506821,18.33442045,3194.5,3194.0,0.37804894]
[1763267508126,18.33442045,3194.5,3194.0,0.15064894]
[1763267508324,18.33442045,3194.5,3194.0,0.37804894]
[1763267511930,15.127,3194.4,3194.0,0.15064894]
[1763267512730,15.127,3194.4,3194.0,0.37804894]
[1763267515235,3.2078,3194.2,3194.1,0.2274]
[1763267521137,0.00262045,3194.5,3194.4,0.2337]
[1763267525939,0.00262045,3194.5,3194.0,0.15064894]
[1763267526133,3.2078,3194.2,3194.0,0.15064894]
[1763267527939,4.04795546,3194.2,3194.0,0.00334894]
[1763267528332,4.32965465,3194.2,3193.1,1.12183159]
[1763267528639,4.32965465,3194.2,3193.0,5.03423106]
[1763267528640,3.2078,3193.5,3193.0,0.3724]
[1763267528839,15.135,3193.4,3193.0,0.3724]
[1763267529234,15.135,3193.4,3193.0,0.37623644]
[1763267530036,15.135,3193.4,3193.0,0.00383644]
[1763267530239,15.97612366,3193.4,3193.0,0.00383644]
[1763267530435,3.2078,3193.1,3192.1,1.12435985]
[1763267530738,4.32965465,3192.2,3191.5,0.1387]
[1763267530930,3.2078,3191.6,3191.5,0.3724]
[1763267531135,18.3638,3191.6,3191.5,0.1387]
[1763267531336,18.36716367,3191.6,3191.5,0.14200069]
[1763267532243,18.36716367,3191.6,3191.0,0.1387]
[1763267532244,3.21116367,3191.6,3191.0,0.1387]
[1763267532545,3.2078,3191.1,3191.0,0.1387]
[1763267532736,10.6178,3191.1,3190.5,0.1387]
[1763267532932,3.2078,3190.6,3190.5,0.1387]
[1763267533135,3.2078,3190.6,3190.0,0.1387]
[1763267533333,0.84349923,3191.6,3191.5,0.1381]
[1763267533534,3.21116367,3191.6,3191.5,0.3663]
[1763267534243,3.21116367,3191.6,3191.5,0.1381]
[1763267536044,3.21116367,3191.6,3191.0,0.1381]
[1763267536247,3.2078,3191.1,3191.0,0.3663]
[1763267536647,9.9148,3191.1,3191.0,0.1381]
[1763267538246,9.9148,3191.1,3190.5,0.14145874]
[1763267538446,3.2078,3190.6,3190.5,0.14145874]
[1763267538946,3.2078,3190.6,3190.5,0.36965874]
[1763267540736,3.2078,3190.6,3190.5,6.36965874]
[1763267540943,3.2078,3191.0,3190.9,0.2282]
[1763267542940,3.2078,3191.0,3190.5,0.14145874]
[1763267543460,3.2078,3190.6,3190.5,0.14145874]
[1763267543751,3.2078,3190.6,3190.0,0.1387]
[1763267543953,3.2078,3190.1,3190.0,0.1387]
[1763267544749,3.2078,3190.1,3190.0,0.14092096]
[1763267545146,3.2078,3190.1,3190.0,0.36912096]
[1763267545354,3.2078,3190.1,3190.0,0.14092096]
[1763267546055,3.2078,3190.1,3190.0,0.36912096]
[1763267548359,3.2078,3190.1,3190.0,0.14092096]
[1763267548955,3.2078,3190.1,3190.0,0.37672096]
[1763267550262,3.2078,3190.1,3190.0,0.14092096]
[1763267551360,3.2078,3190.1,3189.5,0.1381]
[1763267551559,3.2078,3190.1,3189.0,0.1381]
[1763267551560,3.2078,3189.6,3189.0,0.1381]
[1763267551760,3.2078,3189.2,3189.0,0.1381]
[1763267552161,3.2078,3189.2,3189.1,0.2358]
[1763267552362,3.21156484,3189.2,3189.1,0.23930191]
[1763267554766,3.2078,3189.6,3189.5,0.3749]
[1763267555669,3.21034696,3189.6,3189.5,0.3749]
[1763267557261,0.00254696,3189.6,3189.5,0.3749]
[1763267558272,4.696e-05,3189.6,3189.5,0.3749]
[1763267559671,3.20784696,3189.6,3189.5,0.1391]
[1763267560176,3.20784696,3189.6,3189.1,0.00350191]
[1763267560473,3.2078,3189.2,3189.1,0.00350191]
[1763267561469,9.2078,3189.2,3189.1,0.00350191]
[1763267561678,3.2078,3189.2,3189.1,0.00350191]
[1763267561975,3.2078,3189.2,3189.1,0.23930191]
[1763267562775,3.58414696,3189.6,3189.5,0.1391]
[1763267563677,3.58414696,3189.6,3189.5,0.3749]
[1763267565669,3.58414696,3189.6,3189.5,0.1391]
[1763267566074,3.58414696,3189.6,3189.5,0.3749]
[1763267566372,3.58414696,3189.6,3189.5,0.1391]
[1763267567271,3.58414696,3189.6,3189.5,0.3749]
[1763267567968,3.58414696,3189.6,3189.5,0.1391]
[1763267568381,3.58414696,3189.6,3189.5,0.3749]
[1763267570277,3.58414696,3189.6,3189.5,0.1391]
[1763267570671,3.58414696,3189.6,3189.5,0.3749]
[1763267570871,3.58414696,3189.6,3189.5,0.1391]
[1763267571580,0.37634696,3189.6,3189.5,0.1391]
[1763267571972,0.37634696,3189.6,3189.1,0.00350191]
[1763267572277,3.2078,3189.2,3189.1,0.00350191]
[1763267572881,3.2078,3189.2,3189.1,0.23930191]
[1763267573275,3.2078,3189.2,3189.1,0.00350191]
[1763267573986,3.2078,3189.2,3189.1,0.23930191]
[1763267574173,3.2078,3189.2,3189.1,0.00350191]
[1763267576084,3.2078,3189.2,3189.1,0.23930191]
[1763267576384,3.2078,3189.2,3189.1,0.00350191]
[1763267577278,3.2078,3189.2,3189.1,0.23930191]
[1763267580584,0.83929577,3189.4,3189.3,0.2358]
[1763267580781,4.42344273,3189.6,3189.5,0.1363]
[1763267581085,4.42344273,3189.6,3189.5,0.3846]
[1763267581289,0.37634696,3189.6,3189.5,0.3846]
[1763267581782,0.00469741,3190.1,3189.9,0.2483]
[1763267581986,0.00469741,3190.1,3190.0,0.3846]
[1763267582182,0.83929577,3190.7,3190.6,0.2483]
[1763267582574,0.84195314,3190.7,3190.6,0.2483]
[1763267583185,0.00265737,3190.7,3190.6,0.2483]
[1763267583683,0.00265737,3190.7,3190.5,0.1363]
[1763267583883,0.84195314,3190.7,3190.5,0.1363]
[1763267584083,0.84195314,3190.7,3190.3,0.00469741]
[1763267584388,3.2078,3190.4,3190.3,0.00469741]
[1763267584590,3.2078,3190.4,3190.0,0.1363]
[1763267584775,0.83978138,3190.3,3189.5,3.3441]
[1763267584979,3.2078,3190.0,3189.5,3.3441]
[1763267586783,3.2078,3190.0,3189.5,0.1363]
[1763267586987,3.2078,3189.6,3189.5,0.1363]
[1763267587187,3.2078,3189.6,3189.1,0.09950191]
[1763267587888,4.04758138,3189.6,3189.1,0.09950191]
[1763267588093,4.04758138,3189.6,3189.5,0.1363]
[1763267588983,4.04758138,3189.6,3189.1,0.09950191]
[1763267589594,3.2078,3189.2,3189.1,0.09950191]
[1763267590188,3.2078,3189.2,3189.1,0.34780191]
[1763267590890,0.83978138,3189.8,3189.7,0.2483]
[1763267591084,3.2078,3190.0,3189.9,0.2483]
[1763267591695,3.2078,3190.0,3189.5,0.1363]
[1763267592393,3.2078,3190.0,3189.9,0.2483]
[1763267592597,3.2078,3190.0,3189.5,0.1363]
[1763267592894,3.2078,3189.6,3189.5,0.1363]
[1763267593192,3.2078,3189.6,3189.5,0.3846]
[1763267593895,3.2078,3190.0,3189.9,0.2483]
[1763267595102,3.2078,3190.0,3189.5,0.1363]
[1763267596205,3.2078,3190.0,3189.9,0.2262]
[1763267597403,3.2078,3190.0,3189.5,0.1363]
[1763267598796,3.2078,3189.6,3189.5,0.1363]
[1763267599099,3.2078,3189.6,3189.1,0.09950191]
[1763267599300,3.2078,3189.6,3189.5,0.1481]
[1763267599602,3.2078,3189.6,3189.1,0.09950191]
[1763267599905,3.2078,3189.2,3189.1,0.09950191]
[1763267600394,3.2078,3189.2,3189.1,0.32570191]
[1763267601001,3.2078,3189.2,3189.1,0.09950191]
[1763267603201,3.2078,3189.2,3189.1,1.91e-06]
[1763267604302,3.2078,3189.2,3189.1,0.00271259]
[1763267605409,3.2078,3189.2,3189.1,1.259e-05]
[1763267606907,12.1788,3189.2,3189.1,1.259e-05]
[1763267607502,3.2078,3189.2,3189.1,1.259e-05]
[1763267612016,18.4708,3189.2,3189.1,1.259e-05]
[1763267613513,19.59265465,3189.2,3187.9,1.12634689]
[1763267613710,3.2078,3188.1,3187.8,1.12634689]
[1763267613912,15.262,3188.3,3188.0,0.3922]
[1763267614101,15.262,3188.3,3188.0,0.1481]
[1763267614515,15.262,3188.3,3188.0,0.1512243]
[1763267614516,15.2653967,3188.3,3188.0,0.1512243]
[1763267614708,3.2078,3188.1,3188.0,0.1512243]